Cogmind - Beta 11 @@@ ROGUE MODE // 2022.04.11 @ 21:52:02 Player: CrashCricket Result: Destroyed by as-73357 with Assembled Heavy Rifle Performance ------------- Evolutions (0) 0 Regions Visited (2) 400 Robots Destroyed (10) 50 Value Destroyed (253) 253 Prototype IDs (0) 0 Alien Tech Used (0) 0 Bonus (37) 37 TOTAL SCORE: 740 Bonus ------- High Alert Combat Kills 2 Follower Combat Kills 35 Cogmind --------- Core Integrity 0/250 Matter 300/300 Energy 100/100 System Corruption 9% Temperature Cool (0) Movement Core (150) Ox2 Location -10/Mines Parts ------- > --- POWER (1) -------- (None) > --- PROPULSION (2) --- (None) > --- UTILITY (2) ------ Small Storage Unit Sensor Array > --- WEAPON (2) ------- Light Assault Rifle > --- INVENTORY (8) ---- Signal Interpreter Small Laser Peak State ------------ > --- POWER ------------ Light Angular Momentum Engine > --- PROPULSION ------- Wheel > --- UTILITY ---------- Small Storage Unit Sensor Array > --- WEAPON ----------- Beamcaster Light Assault Rifle > --- INVENTORY -------- Signal Interpreter Small Laser [Rating: 14] Favorites ----------- Power Ion Engine Engine Ion Engine Propulsion Compact Wheel Wheel Compact Wheel Utility Small Storage Unit Device Sensor Array Storage Small Storage Unit Weapon Light Cannon Energy Gun Beamcaster Ballistic Gun Assault Rifle Ballistic Cannon Light Cannon Build | -11 -10 -10 ------- Run | Scr Mat Min Slots Evolved . | . . . Power . | . . . Propulsion . | . . . Utility . | . . . Weapon . | . . . Parts Attached 15 | 7 2 6 Power 3 | 1 . 2 Engine 3 | 1 . 2 Core . | . . . Reactor . | . . . Propulsion 4 | 2 . 2 Treads . | . . . Leg . | . . . Wheel 4 | 2 . 2 Hover . | . . . Flight . | . . . Utility 3 | 2 1 . Device 2 | 1 1 . Storage 1 | 1 . . Processor . | . . . Hackware . | . . . Protection . | . . . Artifact . | . . . Weapon 5 | 2 1 2 Energy Gun 2 | 1 . 1 Energy Cannon . | . . . Ballistic Gun 2 | 1 . 1 Ballistic Cannon 1 | . 1 . Launcher . | . . . Special Weapon . | . . . Impact Weapon . | . . . Slashing Weapon . | . . . Piercing Weapon . | . . . Special Melee Weapon . | . . . Unidentified Prototypes . | . . . Parts Lost 9 | . 2 7 Power 2 | . . 2 Propulsion 3 | . . 3 Utility 1 | . 1 . Weapon 3 | . 1 2 Highest Loss Streak 6 | . 1 6 To Critical Strikes . | . . . Average Slot Usage (%) 94 | . 91 96 Engine 14 | . 14 14 Wheel 26 | . 28 25 Device 11 | . 6 14 Storage 14 | . 14 14 Energy Gun 9 | . 9 9 Ballistic Gun 8 | . 14 6 Ballistic Cannon 9 | . 4 11 Naked Turns . | . . . Heaviest Build 21 | 15 16 21 Greatest Support 32 | 32 32 32 Greatest Overweight (x) 5 | . . 5 Average Overweight (x) . | . . . Largest Inventory Capacity 8 | 8 8 8 Average Capacity 7 | 6 8 8 Most Carried 6 | 5 4 6 Average Carried 2 | 2 2 2 Final Capacity 8 | 8 8 8 Final Carried 3 | 2 3 2 Class Distribution -------------------- 61% | Mutant 38% | Scavenger-Mutant Dominant Class ---------------- Mutant | -10/Materials Scavenger-Mutant | -10/Mines Resources | -11 -10 -10 ----------- Run | Scr Mat Min Matter Collected 453 | 264 84 105 Remotely . | . . . Salvage Created 203 | 12 118 73 Parts 17 | 2 9 6 Haulers Intercepted . | . . . Recyclers Shooed . | . . . Parts Field Recycled . | . . . Retrieved Matter . | . . . Parts Self-Destructed . | . . . Prevented . | . . . Kills | -11 -10 -10 ------- Run | Scr Mat Min Combat Hostiles Destroyed 8 | . 3 5 Guns 6 | . 2 4 Cannons 2 | . 1 1 Classes Destroyed 6 | 1 2 3 Worker 1 | . . 1 Tunneler 2 | 1 . 1 Watcher 1 | . 1 . Swarmer 3 | . . 3 Grunt 3 | . 3 . Assembled 2 | . . 2 Best Kill Streak 3 | 1 3 2 Combat Bots Only 2 | . 2 2 Max Kills in Single Turn 1 | 1 1 1 Gunslinging . | . . . Exploded . | . . . Melee . | . . . Uniques/NPCs Destroyed . | . . . Combat | -11 -10 -10 -------- Run | Scr Mat Min Damage Taken 1037 | . 290 747 Core 264 | . 34 230 Absorbed by Shields . | . . . Core Remaining (%) 100 | 100 . . Volleys Fired 44 | 3 16 25 Largest 2 | 2 2 2 Hottest 110 | 60 60 110 Shots Fired 77 | 6 30 41 Gun 58 | 6 26 26 Cannon 19 | . 4 15 Launcher . | . . . Special . | . . . Kinetic 50 | 3 20 27 Thermal 14 | . . 14 Explosive . | . . . Electromagnetic 13 | 3 10 . Robot Hit Streak 7 | 2 7 2 Robot Miss Streak 3 | 2 3 3 Penetration Max . | . . . Secondary Targets . | . . . Shots Hit Robots 33 | 2 20 11 Core Hits 15 | 1 7 7 Critical Kills . | . . . Critical Parts Destroyed . | . . . Critical Strikes 1 | . . 1 Burn 1 | . . 1 Melee Attacks . | . . . Impact . | . . . Slashing . | . . . Piercing . | . . . Sneak Attacks . | . . . Combat Hostiles . | . . . Follow-up Attacks . | . . . Damage Inflicted 556 | 25 310 221 Guns 437 | 25 238 174 Cannons 104 | . 72 32 Explosions 15 | . . 15 Melee . | . . . Ramming . | . . . Kinetic 295 | . 216 79 Thermal 142 | . . 142 Explosive . | . . . Electromagnetic 119 | 25 94 . Impact . | . . . Slashing . | . . . Piercing . | . . . Highest Corruption 9 | . . 9 Average Corruption 4 | . . 4 Corruption Purged . | . . . Corruption Blocked . | . . . Overload Shots . | . . . Overflow Damage . | . . . Projectiles . | . . . Explosions . | . . . Melee . | . . . Knockbacks 2 | . 1 1 Impact . | . . . Kinetic 2 | . 1 1 Secondary . | . . . Self-Inflicted Damage 180 | . . 180 Shots 4 | . . 4 Rammed . | . . . Targets Rammed . | . . . Kicked . | . . . Crushed . | . . . Highest Temperature 332 | . 48 332 Average Temperature 108 | . 17 153 Received Heat Transfer 196 | . 156 40 Effects 2 | . . 2 Interference 2 | . . 2 Siege Activations . | . . . Robots Corrupted . | . . . Combat Hostiles . | . . . Parts Fried . | . . . Impact Corruptions . | . . . Robots Melted . | . . . Combat Hostiles . | . . . Parts Melted . | . . . Heat Transferred 346 | . . 346 Parts Sabotaged . | . . . Parts Stolen . | . . . Parts Stripped . | . . . Power Chain Reactions . | . . . Missiles Intercepted . | . . . Alert | -11 -10 -10 ------- Run | Scr Mat Min Peak Influence 506 | 5 89 506 Initial 34 | . 3 34 Average 182 | 1 43 276 Maximum Alert Level 2 | . . 2 Low Security (%) 69 | 100 100 51 Level 1 1 | . . 1 Level 2 28 | . . 46 Level 3 . | . . . Level 4 . | . . . Level 5 . | . . . High Security . | . . . Max Security . | . . . Squads Dispatched 2 | . 2 . Investigation 1 | . 1 . Extermination . | . . . Reinforcement 1 | . 1 . Assault . | . . . Garrison . | . . . Intercept . | . . . Searches Triggered . | . . . Construction Impeded . | . . . Haulers Reinforced . | . . . Active Scanning Responses . | . . . Cargo Convoy Interrupts . | . . . Stealth | -11 -10 -10 --------- Run | Scr Mat Min Distress Signals 1 | . 1 . Communications Jammed . | . . . Distress Signals . | . . . Times Spotted 29 | . 6 23 Peak Tracking Total 12 | . 4 12 Tactical Retreats 2 | . . 2 Traps | -11 -10 -10 ------- Run | Scr Mat Min Traps Triggered . | . . . Indirectly . | . . . Trap Hack Attempts . | . . . Triggered . | . . . Disarmed . | . . . Reprogrammed 6 | . 6 . Reused . | . . . Traps Extracted . | . . . Installed . | . . . Triggered . | . . . Machines | -11 -10 -10 ---------- Run | Scr Mat Min Machines Disabled 9 | . . 9 Max in Single Turn 8 | . . 8 Machines Sabotaged . | . . . Garrisons Compromised . | . . . Overloaded Fab Kills . | . . . Hacking | -11 -10 -10 --------- Run | Scr Mat Min Machines Accessed 2 | . 2 . Terminals 1 | . 1 . Fabricators . | . . . Repair Stations . | . . . Recycling Units 1 | . 1 . Scanalyzers . | . . . Garrison Access . | . . . Total Hacks 7 | . 7 . Successful 6 | . 6 . Failed 1 | . 1 . Catastrophic 1 | . 1 . Database Lockouts . | . . . Manual . | . . . Terminals 3 | . 3 . Fabricators . | . . . Repair Stations . | . . . Recycling Units 4 | . 4 . Scanalyzers . | . . . Garrison Access . | . . . Terminal Hacks 2 | . 2 . Locate Traps 1 | . 1 . Reprogram Traps 1 | . 1 . Fabricator Hacks . | . . . Repair Station Hacks . | . . . Recycling Unit Hacks 4 | . 4 . Process 2 | . 2 . Retrieve Matter 2 | . 2 . Scanalyzer . | . . . Garrison Access Hacks . | . . . Unauthorized Hacks . | . . . Terminals . | . . . Fabricators . | . . . Repair Stations . | . . . Recycling Units . | . . . Scanalyzers . | . . . Garrison Access . | . . . Data Cores Recovered . | . . . Used . | . . . Hacking Detections 2 | . 2 . Full Trace Events 1 | . 1 . Feedback Events . | . . . Feedback Blocked . | . . . Robot Schematics Acquired . | . . . Robots Built . | . . . Authchips . | . . . Time . | . . . Total Robot Build Rating . | . . . Part Schematics Acquired . | . . . Parts Built . | . . . Authchips . | . . . Time . | . . . Total Part Build Rating . | . . . Parts Repaired . | . . . Time . | . . . Parts Recycled . | . . . Recycled Matter 5 | . 5 . Retrieved Matter 5 | . 5 . Retrieved Components . | . . . Parts Scanalyzed . | . . . Part Schematics Acquired . | . . . Parts Damaged . | . . . Bothacking | -11 -10 -10 ------------ Run | Scr Mat Min Used RIF Installer . | . . . Robots Hacked . | . . . Non-combat . | . . . Combat . | . . . Robot Hacks Applied . | . . . Relay Couplers Released . | . . . Fabnet Peak Effective % . | . . . Robots Rewired . | . . . Allies Hacked . | . . . Hacks Repelled . | . . . Allies | -11 -10 -10 -------- Run | Scr Mat Min Total Allies 2 | . . 2 Largest Group 2 | . . 2 Highest-Rated Group 54 | . . 54 Highest-Rated Ally 31 | . . 31 Total Orders . | . . . Ally Attacks 13 | . . 13 Total Damage 168 | . . 168 Kills 5 | . . 5 Allies Corrupted . | . . . Allies Melted . | . . . Intel | -11 -10 -10 ------- Run | Scr Mat Min Robot Analysis Total . | . . . Derelict Logs Recovered . | . . . Drone Launches . | . . . Drone Recoveries . | . . . Exploration | -11 -10 -10 ------------- Run | Scr Mat Min Turns Passed 629 | 71 170 388 Spaces Moved 510 | 49 116 345 Core 5 | 3 . 2 Treads . | . . . Legs . | . . . Wheels 505 | 46 116 343 Hover . | . . . Flight . | . . . Fastest Speed 50 | 50 100 80 Average Speed 92 | 96 100 88 Slowest Speed 300 | 100 100 300 Overloaded Moves . | . . . Propulsion Burnouts . | . . . Robots Hopped . | . . . Cave-ins Triggered . | . . . Exploration Rate (%) 26 | 3 17 60 Regions Visited 2 Branch Regions 1 Pre-discovered Areas . | . . . Known Exits Taken . | . . . Unknown Exits Taken 2 | 1 1 . Scrap Searched 1 | . . 1 Spaces Dug . | . . . Terrain Destroyed 28 | . . 28 Melee . | . . . Projectile . | . . . AOE 28 | . . 28 Terrain Rammed . | . . . Walls Destroyed . | . . . Machines Disabled . | . . . Actions | -11 -10 -10 --------- Run | Scr Mat Min Total 593 | 66 140 387 Wait 7 | . 4 3 Move 508 | 48 115 345 Hop . | . . . Pick Up 16 | 8 3 5 Fast Attach 1 | 1 . . Attach 11 | 6 2 3 Detach . | . . . Swap 3 | . . 3 Drop 3 | . . 3 Fire 44 | 3 16 25 Melee . | . . . Ram . | . . . Kick . | . . . Crush . | . . . Escape Stasis . | . . . Rewire . | . . . Trap . | . . . Miscellaneous . | . . . Route ------- -11/Scrapyard -10/Materials -10/Mines (discovered 1 exit: [*Mat]) History --------- Turn | Location | Event 17 | -11/Scrapyard | Discovered new exit (range 15) 72 | -11/Scrapyard | Entered Materials 169 | -10/Materials | Discovered new exit (range 13) 242 | -10/Materials | Entered Mines 273 | -10/Mines | Met a Derelict bent on vengeance 308 | -10/Mines | Build established: Mutant 322 | -10/Mines | Discovered new exit (range 5) 449 | -10/Mines | Core integrity fell below 50% 565 | -10/Mines | Assembled infested the area 570 | -10/Mines | Assisted by a Guerilla fighting off Assembled 616 | -10/Mines | Core integrity fell below 20% 630 | -10/Mines | Destroyed by as-73357 with Assembled Heavy Rifle Last Messages --------------- S-10 Pest destroyed. Lgt. Cannon destroyed. Destroyed Asb. Hover Unit. as-31827 suffers critical hit (Burn). as-31827 destroyed. Wheel destroyed. as-17539 destroyed. Q5-R23(g) destroyed. Acquired 12 matter. Acquired Lgt. Angular Momentum Engine. Overheating: System interference. Beamcaster temporarily disabled. Ion Engine destroyed. System corrupted by crushing effect (+2). Knocked back. Beamcaster destroyed. System corrupted by crushing effect (+4). Wheel destroyed. System corrupted by crushing effect (+3). Lgt. Angular Momentum Engine destroyed. Map ----- +----------------------------------------------------+ | ????# #?# #???????????????????##?????? ?? | | ????# " #?# #??????????????????? #?????# ?? | | ????# #?# #?####?????????????? #?????# ? | | ????# " =#?# ### ##????????????? #????? ? | | ????# " %### ## < ####### #????? #????? ? | | ????# #???? #????? | | ????# = ####### #####????? #???? | | ????### #####?????# # ##????????? #???? | | ####### #?????????# ####?????????? #???? | | #?????????# #????????????? #???? ## | | ####### #?????????# !#???????###### #??????#??#?? | | ##??## ##???????##% ######### #???????????? | | #### #??????## ? ## = = #???????????? | | #??????# ? [*% ##??????????? | | ##??????# ? [ #????? | | #########???????## ## # ## #????? | | ?????????????????##### ## ##?# ?? | | ?????????????????????# ########???# #### ? | | ?????????????????????### #???????????# ##????? | | ???????????????????????# #????????????# ##?????? | | ???????????????????????# #?????????????####??????? | | ??????????????##???????# #???????????????????????? | | ??????????????# ?????#?#???????????????????????? | | ?????????###### #??## #####???????????????????? | | ?????????# ## ## ##??????????????????? | | ?????????# @aa ################???? | | ???????????????#### aaaaaaa aa #???? | | ??????????????????## ############## #???? | | ???????????????????## ##????????????# ####% | | ????????????????????## #####?????????????# %%=[% | | ?????????????????????#####?????????????????###### | | ?????????????????????????????????????????????????? | | ?????????????????????????????????????????????????? | | ?????????????????????????????????????????????????? | | ?????????????????????????????????????????????????? | | ?????????????????????????????????????????????????? | | ?????????????????????????????????????????????????? | | ?????????????????????????????????????????????????? | | ?????????????????????????????????????????????????? | | ?????????????????????????????????????????????????? | | ?????????????????????????????????????????????????? | | ?????????????????????????????????????????????????? | | ?????????????????????????????????????????????????? | | ?????????????????????????????????????????????????? | | ?????????????????????????????????????????????????? | | ?????????????????????????????????????????????????? | | ?????????????????????????????????????????????????? | | ?????????????????????????????????????????????????? | | ?????????????????????????????????????????????????? | | ?????????????????????????????????????????????????? | +----------------------------------------------------+ Best States ------------- Heat Dissipation 25 Energy Generation 18 Energy Capacity 250 Matter Stores 300 Matter Capacity 300 Sight Range 16 Robot Scan Range 14 Terrain Scan Range 16 Terrain Scan Density 10 Evasion (%) 44 Item Schematics ----------------- None Robot Schematics ------------------ None Fabricated ------------ Nothing Alien Tech Used ----------------- None Achievements -------------- None Challenges ------------ None Game ------ Seed CatalystWardroneMegatreads Manual? 0 Play Time 00:13:19 Cumulative 13.2 hours Start 2022.04.11 @ 21:40:31 End 2022.04.11 @ 21:52:02 Sessions 1 Manual Loads 0 Difficulty Rogue Special Mode None Game No. 13 Rogue 4 Adventurer 2 Explorer 7 Win Type - Total 0 Types 0/0/0/0/0/0/0/0/0 Lore% 6 Gallery% 19 Achievement% 18 Wizard Run 0 Options --------- ASCII 0 Keyboard 0 Movement Mouse Keybinds 0 Fullscreen 1 Font 18/TerminusBold Map View 76x50 Tactical HUD 0 Map Filters NONE Filters NONE Steam 1 RUN: 76ef29ad-dedc-4d74-830b-3655819a9d42